Cogmind - Beta 10.1 @@@ ROGUE MODE // 2020.09.26 @ 00:30:48 // Winter2019/RPGLIKE Player: Torako Result: Destroyed 0B10! Performance ------------- Evolutions (9) 4500 Regions Visited (28) 5600 Robots Destroyed (237) 1185 Value Destroyed (11304) 11304 Prototype IDs (74) 1480 Alien Tech Used (7) 1400 Bonus (46477) 46477 TOTAL SCORE: 71946 Bonus ------- High Alert Combat Kills 1377 Follower Combat Kills 2906 Network Hubs Disabled 200 Met Data Miner 300 Met Warlord at Base 500 MAIN.C Attacked Warlord 500 Warlord Defense Kill 434 Built Enhanced Grunts 300 Met R17 at Cetus 500 Found Hidden Lab 3000 Used Core Reset Matrix 3000 Met Warlord at Research 2000 Scanned by Researcher 500 Pursued by Intercept 500 Met Sigix 2000 Escaped with Sigix 5000 Destroyed MAIN.C Guards 500 Met MAIN.C 5000 Destroyed MAIN.C Shell 5000 Destroyed MAIN.C 10000 Win 3000 Friendly Fire -40 Cogmind --------- Core Integrity 264/2450 Matter 270/300 Energy 375/380 System Corruption 0% Temperature Cool (5) Movement Flying (24) Location Tau Ceti IV Orbit Parts ------- > --- POWER (2) -------- Zero-point Reactor Zero-point Reactor > --- PROPULSION (5) --- Impulse Thruster Impulse Thruster Impulse Thruster Improved Diametric Drive Improved Diametric Drive > --- UTILITY (11) ----- Power Amplifier Advanced Visual Processing Unit Experimental Signal Interpreter Advanced Melee Analysis Suite Advanced Melee Analysis Suite Improved Core Analyzer Advanced Armor Integrity Analyzer Advanced Reaction Control System Advanced Phase Shifter Experimental Powered Armor System Purifier > --- WEAPON (4) ------- Sigix Broadsword Lance > --- INVENTORY (7) ---- Enhanced Nova Cannon Z-bomb Delivery System Guided Remote Datajack Sigix Broadsword Sigix Containment Pod Peak State ------------ > --- POWER ------------ Heavy Antimatter Reactor Light Quantum Reactor > --- PROPULSION ------- Impulse Thruster Impulse Thruster Impulse Thruster Improved Diametric Drive Improved Diametric Drive > --- UTILITY ---------- Experimental Signal Interpreter Advanced Melee Analysis Suite Advanced Melee Analysis Suite Improved Core Analyzer Advanced Armor Integrity Analyzer Advanced Reaction Control System Advanced Phase Shifter Centrium Heavy Armor Plating Experimental Powered Armor Experimental Hacking Suite > --- WEAPON ----------- Sigix Broadsword Sigix Broadsword > --- INVENTORY -------- Advanced Heat Sink Coolant Network Guided Remote Datajack Lance Sigix Containment Pod [Rating: 201] Favorites ----------- Power Zero-point Reactor Engine Deuterium Engine Power Core Nuclear Core Reactor Zero-point Reactor Propulsion Improved VTOL Module Treads Light Treads Leg High-density Centrium Leg Wheel Wheel Hover Unit Combat Airjet Flight Unit Improved VTOL Module Utility Advanced Melee Analysis Suite Device Advanced Reaction Control System Storage Improved Energy Well Processor Advanced Melee Analysis Suite Hackware Experimental Hacking Suite Protection Improved Light Armor Plating Weapon Ripper Energy Gun Medium Laser Energy Cannon Ion Cannon Ballistic Gun Assault Rifle Ballistic Cannon Linear Accelerator Launcher Scatter Rocket Array Special Weapon Guided Remote Datajack Slashing Weapon Ripper Piercing Weapon Lance Build | -11 -10 -9 -9 -8 -8 -7 -7 -7 -7 -6 -6 -6 -6 -6 -6 -5 -5 -5 -5 -4 -4 -4 -4 -3 -3 -2 -1 -1 ------- Run | Scr Mat Mat Min Mat Sto Fac Low Low Dat Pro Fac Ext Cet Arc Hub Fac Upp Upp War Pro Fac Arm Lab Res Qua Res Acc Com Slots Evolved 17 | 5 . 4 . . 1 . 2 . . . 1 1 . 1 . 1 . . . . . . 1 . . . . . Power 1 | 1 . . . . . . . . . . . . . . . . . . . . . . . . . . . . Propulsion 3 | 1 . 2 . . . . . . . . . . . . . . . . . . . . . . . . . . Utility 10 | 1 . 2 . . 1 . 1 . . . 1 1 . 1 . 1 . . . . . . 1 . . . . . Weapon 3 | 2 . . . . . . 1 . . . . . . . . . . . . . . . . . . . . . Parts Attached 200 | 9 4 9 5 9 13 3 4 1 . 1 1 10 6 2 2 15 . 2 13 5 3 1 14 2 12 3 . 51 Power 32 | 2 . 2 . . 3 . . . . . . 1 1 . . 3 . . . 1 2 . 3 2 . 3 . 9 Engine 7 | 2 . . . . 3 . . . . . . 1 . . . . . . . . . . . . . 1 . . Core 6 | . . 2 . . . . . . . . . . . . . 3 . . . . . . . . . . . 1 Reactor 19 | . . . . . . . . . . . . . 1 . . . . . . 1 2 . 3 2 . 2 . 8 Propulsion 32 | 4 . 4 2 3 6 . . . . . . . . . . . . 1 2 . . . . . 4 . . 6 Treads 1 | 1 . . . . . . . . . . . . . . . . . . . . . . . . . . . . Leg 2 | . . . . . . . . . . . . . . . . . . . . . . . . . . . . 2 Wheel 3 | 3 . . . . . . . . . . . . . . . . . . . . . . . . . . . . Hover 5 | . . . 1 3 1 . . . . . . . . . . . . . . . . . . . . . . . Flight 21 | . . 4 1 . 5 . . . . . . . . . . . . 1 2 . . . . . 4 . . 4 Utility 86 | . 4 3 3 2 1 . 3 1 . 1 1 7 3 2 . 12 . 1 6 3 1 1 8 . 4 . . 19 Device 39 | . 2 . 2 . 1 . 1 1 . . 1 2 1 . . 4 . 1 4 2 . 1 4 . 1 . . 11 Storage 1 | . . . . . . . . . . . . . 1 . . . . . . . . . . . . . . . Processor 18 | . . . . 1 . . 2 . . . . 1 . . . 6 . . 1 1 1 . . . . . . 5 Hackware 11 | . 1 . . . . . . . . . . 1 . 2 . 2 . . 1 . . . 3 . 1 . . . Protection 17 | . 1 3 1 1 . . . . . 1 . 3 1 . . . . . . . . . 1 . 2 . . 3 Artifact . | . . . . . . . . . . . . . . . . . . . . . . . . . . . . . Weapon 50 | 3 . . . 4 3 3 1 . . . . 2 2 . 2 . . . 5 1 . . 3 . 4 . . 17 Energy Gun 8 | 1 . . . . 1 . . . . . . . . . . . . . 2 . . . 2 . . . . 2 Energy Cannon 9 | . . . . 4 . . . . . . . . . . 1 . . . . . . . . . . . . 4 Ballistic Gun 4 | 2 . . . . . . . . . . . . . . . . . . . . . . . . . . . 2 Ballistic Cannon 3 | . . . . . . . . . . . . . . . . . . . 1 . . . . . . . . 2 Launcher 4 | . . . . . 1 1 . . . . . . 1 . . . . . . . . . . . . . . 1 Special Weapon 2 | . . . . . . . . . . . . . . . . . . . . . . . . . 1 . . 1 Impact Weapon . | . . . . . . . . . . . . . . . . . . . . . . . . . . . . . Slashing Weapon 18 | . . . . . 1 2 1 . . . . 2 1 . 1 . . . 2 1 . . 1 . 3 . . 3 Piercing Weapon 2 | . . . . . . . . . . . . . . . . . . . . . . . . . . . . 2 Special Melee Weapon . | . . . . . . . . . . . . . . . . . . . . . . . . . . . . . Unidentified Prototypes 45 | . . 1 . . 5 . . . . . . . 3 . . 4 . 1 8 . 1 . 7 . 1 . . 14 Parts Lost 4 | . . . . . . . . . . 1 . . . . . 1 . . . . . . . . 1 . . 1 Power 2 | . . . . . . . . . . . . . . . . 1 . . . . . . . . 1 . . . Propulsion . | . . . . . . . . . . . . . . . . . . . . . . . . . . . . . Utility 2 | . . . . . . . . . . 1 . . . . . . . . . . . . . . . . . 1 Weapon . | . . . . . . . . . . . . . . . . . . . . . . . . . . . . . Highest Loss Streak 1 | . . . . . . . . . . 1 . . . . . 1 . . . . . . . . 1 . . 1 Average Slot Usage (%) 92 | . 97 98 99 99 97 94 87 87 87 87 87 91 88 88 89 93 95 91 94 94 95 95 92 95 89 88 90 90 Engine 3 | . 22 . . . 5 14 12 12 12 12 11 11 1 . . . . . . . . . . . . . . . Core 2 | . . 18 15 15 9 . . . . . . . . . . 4 5 4 4 2 . . . . . . . . Reactor 4 | . . . . . . . . . . . . . 4 5 5 5 5 4 4 6 9 9 9 9 7 6 9 9 Wheel 1 | . 22 17 . . . . . . . . . . . . . . . . . . . . . . . . . . Hover 1 | . . . . 14 10 . . . . . . . . . . . . . . . . . . . . . . . Flight 20 | . . 4 30 15 16 28 25 25 25 25 23 22 22 21 21 20 20 19 23 23 23 23 22 22 22 22 22 21 Device 12 | . 6 . 3 7 7 14 16 12 12 12 16 16 17 21 21 9 5 4 7 8 9 9 8 9 8 9 9 17 Processor 18 | . . . . 6 7 7 11 18 18 18 17 16 16 15 15 28 30 28 28 28 28 28 26 22 22 22 22 22 Hackware 5 | . 6 9 7 . . . . . . . . 1 5 9 10 10 15 14 10 9 9 9 9 18 14 13 13 4 Protection 5 | . 6 19 17 15 14 14 7 6 6 6 5 5 3 . . . . . . . . . . . 2 4 4 4 Energy Gun 1 | . 11 9 7 . 4 1 . . . . . . . . . . . . . . . . . 9 1 . . . Energy Cannon 1 | . . . . 22 14 1 . . . . . . . . 1 . . . . . . . . . . . . . Ballistic Gun 1 | . 22 19 15 . . . . . . . . . . . . . . . . . . . . . . . . . Slashing Weapon 8 | . . . . . 1 8 11 12 12 12 11 15 16 15 14 15 15 14 13 14 14 14 12 4 3 4 4 4 Naked Turns . | . . . . . . . . . . . . . . . . . . . . . . . . . . . . . Heaviest Build 78 | 14 16 29 32 47 48 46 46 44 44 44 39 45 49 41 47 42 40 40 45 55 56 56 56 55 65 66 66 78 Greatest Support 68 | 26 26 32 32 54 50 50 50 44 44 44 44 50 44 44 44 44 44 49 56 56 56 56 56 56 68 68 68 68 Greatest Overweight (x) 1 | . . . . 1 1 . . . . . . 1 1 . 1 . . . . . . . . 1 . . . 1 Average Overweight (x) . | . . . . . . . . . . . . . . . . . . . . . . . . . . . . . Largest Inventory Capacity 7 | . . 2 2 2 2 3 3 3 3 4 4 4 4 4 4 4 4 4 4 4 4 4 4 4 5 5 7 7 Average Capacity 4 | . . 1 2 2 2 2 3 3 3 3 4 4 4 4 4 4 4 4 4 4 4 4 4 4 4 5 6 7 Most Carried 7 | . . 2 2 2 2 3 3 3 3 4 2 4 4 4 4 4 4 4 4 4 4 4 4 4 5 5 7 7 Average Carried 4 | . . 1 1 1 1 2 2 3 3 2 2 3 4 4 3 3 4 4 3 3 3 4 3 4 3 4 6 6 Final Capacity 7 | . . 2 2 2 2 3 3 3 3 4 4 4 4 4 4 4 4 4 4 4 4 4 4 4 5 5 7 7 Final Carried 7 | . . 2 2 2 2 3 3 3 3 2 2 4 4 4 4 4 4 4 4 3 4 4 4 4 4 5 7 7 Class Distribution -------------------- 22% | Hacker-Sprinter 17% | Alien-Sprinter 16% | Wizard-Sprinter 13% | Sprinter 11% | Commander-Sprinter 9% | Tank Dominant Class ---------------- Gunner | -10/Materials Tank | -9/Materials Sprinter | -9/Mines Tank | -8/Materials Sprinter | -8/Storage Sprinter | -7/Factory Sprinter | -7/Lower Caves Sprinter | -7/Lower Caves Sprinter | -7/Data Miner Sprinter | -6/Proximity Caves Sprinter | -6/Factory Commander-Sprinter | -6/Extension Commander-Sprinter | -6/Cetus Commander-Sprinter | -6/Archives Hacker-Sprinter | -6/Hub_04(d) Hacker-Sprinter | -5/Factory Hacker-Sprinter | -5/Upper Caves Hacker-Sprinter | -5/Upper Caves Hacker-Sprinter | -5/Warlord Hacker-Sprinter | -4/Proximity Caves Hacker-Sprinter | -4/Factory Hacker-Sprinter | -4/Armory Hacker-Sprinter | -4/Lab Wizard-Sprinter | -3/Research Wizard-Sprinter | -3/Quarantine Wizard-Sprinter | -2/Research Wizard-Sprinter | -1/Access Alien-Sprinter | -1/Command Resources | -11 -10 -9 -9 -8 -8 -7 -7 -7 -7 -6 -6 -6 -6 -6 -6 -5 -5 -5 -5 -4 -4 -4 -4 -3 -3 -2 -1 -1 ----------- Run | Scr Mat Mat Min Mat Sto Fac Low Low Dat Pro Fac Ext Cet Arc Hub Fac Upp Upp War Pro Fac Arm Lab Res Qua Res Acc Com Matter Collected 3294 | 260 199 483 122 116 140 30 240 10 . 15 . 168 129 20 33 107 . 90 140 50 20 20 90 . 40 225 . 547 Remotely 20 | . . . 20 . . . . . . . . . . . . . . . . . . . . . . . . . Salvage Created 10340 | . 273 816 15 278 799 251 1398 64 . 273 . 1082 110 272 196 891 . 309 245 723 211 253 124 . 40 168 236 1313 Parts 563 | . 17 63 . 24 27 15 19 9 . 19 . 59 8 11 14 50 4 18 9 34 19 29 3 . 1 20 22 69 Haulers Intercepted 12 | . . 2 . 2 4 1 . . . . . . . . . 2 . . . . 1 . . . . . . . Recyclers Shooed 1 | . . . . . 1 . . . . . . . . . . . . . . . . . . . . . . . Parts Field Recycled . | . . . . . . . . . . . . . . . . . . . . . . . . . . . . . Retrieved Matter . | . . . . . . . . . . . . . . . . . . . . . . . . . . . . . Parts Self-Destructed 133 | . . . . . . . 8 9 . 20 . . . . . . 5 16 43 32 . . . . . . . . Prevented 10 | . . . . . . . . . . . . . . . . . 3 1 6 . . . . . . . . . Kills | -11 -10 -9 -9 -8 -8 -7 -7 -7 -7 -6 -6 -6 -6 -6 -6 -5 -5 -5 -5 -4 -4 -4 -4 -3 -3 -2 -1 -1 ------- Run | Scr Mat Mat Min Mat Sto Fac Low Low Dat Pro Fac Ext Cet Arc Hub Fac Upp Upp War Pro Fac Arm Lab Res Qua Res Acc Com Combat Hostiles Destroyed 193 | . 10 23 2 7 11 2 17 5 . 11 . 23 1 1 3 10 2 9 4 10 3 9 1 . . 4 5 20 Melee 138 | . . . . . 5 2 10 5 . 11 . 23 1 1 3 10 2 9 4 10 3 9 1 . . 4 5 20 Guns 32 | . 10 20 2 . . . . . . . . . . . . . . . . . . . . . . . . . Cannons 13 | . . . . 7 6 . . . . . . . . . . . . . . . . . . . . . . . AOE 10 | . . 3 . . . . 7 . . . . . . . . . . . . . . . . . . . . . Classes Destroyed 18 | . 3 4 1 1 1 . 1 1 . 2 . 3 . . . . . . . . . . . . . . . 1 Worker 7 | . . 2 . . . 1 . . . . . . . . 1 2 . . . . . . . . . . . 1 Builder 4 | . . . . . . . . . . . . 1 . . 2 . . . . . . . . . . 1 . . Hauler 12 | . . 2 . 2 4 1 . . . . . . . . . 2 . . . . 1 . . . . . . . Recycler 2 | . . . . . 1 . . . . . . 1 . . . . . . . . . . . . . . . . Operator 9 | . 1 1 . . . . . . . . . 1 . 5 . . . . . . . . . . . . . 1 Watcher 10 | . . 1 . . . . . . . . . 2 1 . 1 1 . . . . 1 . . . 1 1 1 . Swarmer 37 | . 3 4 . . 4 . 8 4 . 4 . 1 . . . . . 4 . . . 2 . . . . . 3 Saboteur 4 | . . . . . . . . . . 1 . 1 . . . . . . . . . 2 . . . . . . Grunt 72 | . 7 15 . 1 5 . 3 . . 4 . 8 . . . 3 2 5 4 9 2 1 . . . . . 3 Brawler 3 | . . . . . . . . . . 1 . 1 . . . 1 . . . . . . . . . . . . Duelist 2 | . . . . . . . 1 . . . . . . . . . . . . 1 . . . . . . . . Sentry 33 | . . 4 . 5 2 2 1 . . 1 . 5 . 1 2 4 . . . . . 1 . . . 4 . 1 Specialist 3 | . . . . . . . . . . . . 3 . . . . . . . . . . . . . . . . Hunter 9 | . . . . 1 . . . . . . . . . . 1 2 . . . . . 2 . . . . 2 1 Programmer 12 | . . . . . . . . 1 . . . 2 . . . . . . . . 1 1 . . . . 3 4 Behemoth 3 | . . . . . . . . . . . . 2 . . . . . . . . . . . . . . . 1 Cetus Guard 1 | . . . . . . . . . . . . . 1 . . . . . . . . . . . . . . . M Guard 2 | . . . . . . . . . . . . . . . . . . . . . . . . . . . . 2 Combat Programmer 2 | . . . . . . . . . . . . . . . . . . . . . . . . . . . . 2 Executioner 1 | . . . . . . . . . . . . . . . . . . . . . . . . . . . . 1 Assembled 2 | . . . 2 . . . . . . . . . . . . . . . . . . . . . . . . . Wasp 3 | . . . . . . . 3 . . . . . . . . . . . . . . . . . . . . . Thug 1 | . . . . . . . 1 . . . . . . . . . . . . . . . . . . . . . Best Kill Streak 11 | . 5 7 2 3 4 2 11 3 . 6 . 10 1 6 4 8 2 4 4 4 3 2 1 . 1 4 6 3 Combat Bots Only 10 | . 5 5 2 3 4 1 10 3 . 6 . 10 1 1 3 6 2 4 4 4 2 2 1 . . 2 5 3 Max Kills in Single Turn 5 | . 1 5 1 1 1 1 3 1 . 1 . 1 1 1 3 1 1 2 1 1 1 1 1 . 1 1 1 1 Gunslinging . | . . . . . . . . . . . . . . . . . . . . . . . . . . . . . Exploded 3 | . . 3 . . . . 3 . . . . . . . . . . . . . . . . . . . . . Melee 2 | . . . . . 1 1 1 1 . 1 . 1 1 1 1 1 1 2 1 1 1 1 1 . . 1 1 1 Uniques/NPCs Destroyed 3 | . . . . . . . . . . . . . . . . . . . . . . . 1 . . . . 2 A5 (-4/Lab) MAIN.C Shell (-1/Command) MAIN.C (-1/Command) Combat | -11 -10 -9 -9 -8 -8 -7 -7 -7 -7 -6 -6 -6 -6 -6 -6 -5 -5 -5 -5 -4 -4 -4 -4 -3 -3 -2 -1 -1 -------- Run | Scr Mat Mat Min Mat Sto Fac Low Low Dat Pro Fac Ext Cet Arc Hub Fac Upp Upp War Pro Fac Arm Lab Res Qua Res Acc Com Damage Taken 12413 | . 438 659 266 172 330 27 452 251 104 550 171 814 329 77 125 251 29 338 40 555 101 638 144 237 173 224 125 4793 Core 8945 | . 309 439 177 115 235 20 309 175 74 372 104 566 236 63 100 202 22 279 33 477 83 515 117 193 86 183 83 3378 Absorbed by Shields 2789 | . . . 18 67 129 11 177 100 37 201 59 312 122 27 45 91 10 121 40 499 107 470 146 . . . . . Redirected to Core 7555 | . 269 404 150 115 176 20 236 153 40 338 90 467 166 45 91 173 22 210 24 265 59 396 89 162 86 156 83 3070 Core Remaining (%) 81 | 100 100 . 88 . 89 . . . . 100 . . . . 94 . . . . 100 . . 71 . 40 100 . 10 Volleys Fired 185 | . 29 58 12 24 22 . 4 . . . . . 1 . 7 . . . . . . . . 10 . . . 18 Largest 3 | . 3 3 3 3 3 . 1 . . . . . 1 . 1 . . . . . . . . 2 . . . 1 Hottest 195 | . 90 90 90 195 195 . 50 . . . . . 50 . 90 . . . . . . . . 160 . . . 120 Shots Fired 469 | . 87 173 36 72 51 . 4 . . . . . 1 . 7 . . . . . . . . 20 . . . 18 Gun 331 | . 87 173 36 . 13 . . . . . . . . . . . . . . . . . . 20 . . . 2 Cannon 132 | . . . . 72 38 . . . . . . . . . 7 . . . . . . . . . . . . 15 Launcher 5 | . . . . . . . 4 . . . . . 1 . . . . . . . . . . . . . . . Special 1 | . . . . . . . . . . . . . . . . . . . . . . . . . . . . 1 Kinetic 198 | . 58 116 24 . . . . . . . . . . . . . . . . . . . . . . . . . Thermal 245 | . 29 57 12 72 51 . . . . . . . . . 7 . . . . . . . . . . . . 17 Explosive 5 | . . . . . . . 4 . . . . . 1 . . . . . . . . . . . . . . . Electromagnetic 20 | . . . . . . . . . . . . . . . . . . . . . . . . 20 . . . . Robot Hit Streak 18 | . 15 9 4 7 13 . 3 . . . . . . . . . . . . . . . . 17 . . . 18 Robot Miss Streak 7 | . 6 4 7 3 2 . 6 . . . . . . . . . . . . . . . . 2 . . . . Penetration Max . | . . . . . . . . . . . . . . . . . . . . . . . . . . . . . Secondary Targets 4 | . 1 3 . . . . . . . . . . . . . . . . . . . . . . . . . . Max Gunslinging Chain 1 | . 1 1 . . . . . . . . . . . . . . . . . . . . . . . . . . Shots Hit Robots 759 | . 53 99 16 45 49 7 40 14 1 25 3 78 6 16 9 23 3 17 9 37 12 22 12 18 3 11 14 117 Core Hits 365 | . 16 50 4 12 19 4 36 5 . 13 . 32 9 8 15 17 2 11 6 16 6 10 3 7 1 7 6 50 Critical Hits 39 | . . 1 . 1 1 1 . . . . . 1 . 1 1 . 1 2 . 1 . 1 . . . 5 2 20 Critical Kills 10 | . . 1 . 1 1 . . . . . . . . . 1 . . . . . . . . . . 3 . 3 Critical Parts Destroyed 16 | . . . . . . . . . . . . 1 . 1 . . 1 1 . 1 . 1 . . . . 2 8 Melee Attacks 902 | . . . . . 17 8 63 27 1 41 13 89 7 19 12 28 8 19 32 40 21 45 23 . 22 12 23 332 Impact . | . . . . . . . . . . . . . . . . . . . . . . . . . . . . . Slashing 845 | . . . . . 17 8 63 27 1 41 13 89 7 19 12 28 8 19 32 40 21 45 23 . 22 12 23 275 Piercing 57 | . . . . . . . . . . . . . . . . . . . . . . . . . . . . 57 Sneak Attacks 41 | . . . . . 2 3 . . 1 . . 7 . 5 1 5 . . 3 2 3 5 . . . 2 . 2 Combat Hostiles 18 | . . . . . . 1 . . . . . 3 . . 1 1 . . 3 2 . 5 . . . 1 . 1 Follow-up Attacks 88 | . . . . . . . 4 1 . 5 1 17 2 2 1 3 1 6 3 10 3 6 1 . . . . 22 Damage Inflicted 45164 | . 664 1867 177 1004 1342 699 3915 783 189 1322 179 5289 541 1774 1248 1948 179 915 879 2287 1120 1977 995 203 245 1334 1454 10635 Guns 2436 | . 664 1243 177 . 149 . . . . . . . . . . . . . . . . . . 203 . . . . Cannons 1710 | . . . . 1004 666 . . . . . . . . . . . . . . . . . . . . . . 40 Explosions 2145 | . . 624 . . . . 714 . . . . . 203 . 604 . . . . . . . . . . . . . Melee 38873 | . . . . . 527 699 3201 783 189 1322 179 5289 338 1774 644 1948 179 915 879 2287 1120 1977 995 . 245 1334 1454 10595 Ramming . | . . . . . . . . . . . . . . . . . . . . . . . . . . . . . Kinetic 1571 | . 490 917 164 . . . . . . . . . . . . . . . . . . . . . . . . . Thermal 2372 | . 174 326 13 1004 815 . . . . . . . . . . . . . . . . . . . . . . 40 Explosive 1541 | . . 624 . . . . 714 . . . . . 203 . . . . . . . . . . . . . . . Electromagnetic 807 | . . . . . . . . . . . . . . . 604 . . . . . . . . 203 . . . . Impact . | . . . . . . . . . . . . . . . . . . . . . . . . . . . . . Slashing 38102 | . . . . . 527 699 3201 783 189 1322 179 5289 338 1774 644 1948 179 915 879 2287 1120 1977 995 . 245 1334 1454 9824 Piercing 771 | . . . . . . . . . . . . . . . . . . . . . . . . . . . . 771 Highest Corruption 10 | . . . . . . . . . . 4 1 3 3 3 4 . . . . . . 3 5 . 4 . . 10 Average Corruption 4 | . . . . . . . . . . 4 1 2 3 3 3 . . . . . . 1 3 . 3 . . 7 Corruption Purged 11 | . . . . . . . . . . . . . . . . . . . . . . . . . . . . 11 Effects 102 | . . . . . . . . . . 4 1 25 1 5 3 . . . . . . 1 1 . 1 . . 60 Message Errors 21 | . . . . . . . . . . . . 6 . . . . . . . . . 1 . . . . . 14 Matter Fused 24 | . . . . . . . . . . 1 . 9 1 2 2 . . . . . . . . . . . . 9 Heat Flow Errors 5 | . . . . . . . . . . . . 1 . . . . . . . . . . . . . . . 4 Energy Discharges 12 | . . . . . . . . . . 1 1 1 . 1 . . . . . . . . . . . . . 8 Parts Rejected 3 | . . . . . . . . . . . . . . . . . . . . . . . 1 . . . . 2 Data Loss (minor) 13 | . . . . . . . . . . 1 . 4 . 2 . . . . . . . . . . . . . 6 Data Loss (major) 3 | . . . . . . . . . . . . . . . . . . . . . . . . . . . . 3 Misdirections 5 | . . . . . . . . . . . . . . . . . . . . . . . . . . . . 5 Targeting Errors 16 | . . . . . . . . . . 1 . 4 . . 1 . . . . . . . . . 1 . . 9 Overload Shots . | . . . . . . . . . . . . . . . . . . . . . . . . . . . . . Overflow Damage 4877 | . . 71 . 2 19 29 1386 95 129 36 58 649 . 640 78 . . 47 118 337 132 235 16 . . 21 200 579 Projectiles 21 | . . . . 2 19 . . . . . . . . . . . . . . . . . . . . . . . Explosions 85 | . . 71 . . . . 12 . . . . . . . 2 . . . . . . . . . . . . . Melee 4771 | . . . . . . 29 1374 95 129 36 58 649 . 640 76 . . 47 118 337 132 235 16 . . 21 200 579 Knockbacks . | . . . . . . . . . . . . . . . . . . . . . . . . . . . . . Impact . | . . . . . . . . . . . . . . . . . . . . . . . . . . . . . Kinetic . | . . . . . . . . . . . . . . . . . . . . . . . . . . . . . Secondary . | . . . . . . . . . . . . . . . . . . . . . . . . . . . . . Self-Inflicted Damage 125 | . . 3 . . . . 26 . . . . . . . 96 . . . . . . . . . . . . . Shots 4 | . . 1 . . . . 2 . . . . . . . 1 . . . . . . . . . . . . . Rammed . | . . . . . . . . . . . . . . . . . . . . . . . . . . . . . Targets Rammed . | . . . . . . . . . . . . . . . . . . . . . . . . . . . . . Kicked . | . . . . . . . . . . . . . . . . . . . . . . . . . . . . . Crushed . | . . . . . . . . . . . . . . . . . . . . . . . . . . . . . Highest Temperature 322 | . 99 322 64 72 11 . . . . . . 180 . . . . . . . . . . . . . . . 210 Average Temperature 77 | . 33 112 24 43 11 . . . . . . 113 . . . . . . . . . . . . . . . 113 Received Heat Transfer 1919 | . 189 291 118 66 138 12 48 . 12 59 15 203 24 12 24 30 . 126 16 97 14 47 . 27 . 63 . 288 Effects 1 | . . 1 . . . . . . . . . . . . . . . . . . . . . . . . . . Energy Bleed 1 | . . 1 . . . . . . . . . . . . . . . . . . . . . . . . . . Siege Activations . | . . . . . . . . . . . . . . . . . . . . . . . . . . . . . Robots Corrupted . | . . . . . . . . . . . . . . . . . . . . . . . . . . . . . Combat Hostiles . | . . . . . . . . . . . . . . . . . . . . . . . . . . . . . Parts Fried 1 | . . . . . . . . . . . . . . . 1 . . . . . . . . . . . . . Impact Corruptions . | . . . . . . . . . . . . . . . . . . . . . . . . . . . . . Robots Melted . | . . . . . . . . . . . . . . . . . . . . . . . . . . . . . Combat Hostiles . | . . . . . . . . . . . . . . . . . . . . . . . . . . . . . Parts Melted 7 | . . . . 3 3 . . . . . . 1 . . . . . . . . . . . . . . . . Heat Transferred 4477 | . 518 962 37 1591 1332 . . . . . . . . . . . . . . . . . . . . . . 37 Parts Sabotaged . | . . . . . . . . . . . . . . . . . . . . . . . . . . . . . Parts Stolen . | . . . . . . . . . . . . . . . . . . . . . . . . . . . . . Parts Stripped . | . . . . . . . . . . . . . . . . . . . . . . . . . . . . . Power Chain Reactions . | . . . . . . . . . . . . . . . . . . . . . . . . . . . . . Missiles Intercepted . | . . . . . . . . . . . . . . . . . . . . . . . . . . . . . Alert | -11 -10 -9 -9 -8 -8 -7 -7 -7 -7 -6 -6 -6 -6 -6 -6 -5 -5 -5 -5 -4 -4 -4 -4 -3 -3 -2 -1 -1 ------- Run | Scr Mat Mat Min Mat Sto Fac Low Low Dat Pro Fac Ext Cet Arc Hub Fac Upp Upp War Pro Fac Arm Lab Res Qua Res Acc Com Peak Influence 1444 | . 308 688 283 431 575 411 . . . . 180 1444 1045 603 1009 846 . . . . 264 525 . 15 110 275 273 601 Initial 808 | . . 130 268 86 104 249 . . . . 144 7 808 418 210 494 . . . . 138 128 . . 8 8 152 . Average 357 | . 120 469 233 219 328 305 . . . . 127 445 978 580 492 687 . . . . 198 295 . 3 46 174 188 238 Maximum Alert Level 4 | . 1 2 1 2 2 2 . . . . . 4 3 2 3 3 . . . . 1 2 . . . 1 1 3 Low Security (%) 33 | 100 83 13 . 50 12 . . . . . 100 17 . . . . . . . . 55 17 . 100 100 49 36 42 Level 1 26 | . 16 13 100 34 54 87 . . . . . 44 . . 34 . . . . . 44 58 . . . 50 63 13 Level 2 28 | . . 73 . 15 33 12 . . . . . 23 . 100 57 63 . . . . . 24 . . . . . 28 Level 3 10 | . . . . . . . . . . . . 6 100 . 8 36 . . . . . . . . . . . 14 Level 4 . | . . . . . . . . . . . . 7 . . . . . . . . . . . . . . . . Level 5 . | . . . . . . . . . . . . . . . . . . . . . . . . . . . . . High Security . | . . . . . . . . . . . . . . . . . . . . . . . . . . . . . Max Security . | . . . . . . . . . . . . . . . . . . . . . . . . . . . . . Squads Dispatched 38 | . 3 4 . . 7 . . . . 1 3 3 . . 4 . . . . . . 3 . . 2 1 5 2 Investigation 9 | . 1 . . . 2 . . . . . 3 . . . 1 . . . . . . . . . . . 2 . Extermination 2 | . . . . . . . . . . . . . . . . . . . . . . 1 . . . . . 1 Reinforcement 20 | . 2 4 . . 3 . . . . . . 1 . . 2 . . . . . . 2 . . 2 . 3 1 Assault 6 | . . . . . 2 . . . . 1 . 2 . . 1 . . . . . . . . . . . . . Garrison . | . . . . . . . . . . . . . . . . . . . . . . . . . . . . . Intercept 1 | . . . . . . . . . . . . . . . . . . . . . . . . . . 1 . . Construction Impeded 1 | . . . . . . . . . . . . . . . . . . . . . . . . . . . 1 . Haulers Reinforced . | . . . . . . . . . . . . . . . . . . . . . . . . . . . . . Stealth | -11 -10 -9 -9 -8 -8 -7 -7 -7 -7 -6 -6 -6 -6 -6 -6 -5 -5 -5 -5 -4 -4 -4 -4 -3 -3 -2 -1 -1 --------- Run | Scr Mat Mat Min Mat Sto Fac Low Low Dat Pro Fac Ext Cet Arc Hub Fac Upp Upp War Pro Fac Arm Lab Res Qua Res Acc Com Distress Signals 55 | . 2 3 . . 4 . . . . . . 2 2 . 2 2 . . . . . 4 . . . 7 2 25 Communications Jammed . | . . . . . . . . . . . . . . . . . . . . . . . . . . . . . Distress Signals . | . . . . . . . . . . . . . . . . . . . . . . . . . . . . . Times Spotted 421 | . 14 34 18 9 35 3 17 7 4 20 6 45 9 10 12 14 3 9 11 11 14 55 1 2 8 6 10 34 Peak Tracking Total 22 | . 3 7 17 3 12 1 6 5 4 13 3 12 5 3 22 5 3 5 4 4 11 21 1 2 5 4 4 7 Tactical Retreats 32 | . . 1 3 1 3 . . 1 . 4 . 1 . . 2 1 1 1 2 1 . 8 . 1 . . . 1 Traps | -11 -10 -9 -9 -8 -8 -7 -7 -7 -7 -6 -6 -6 -6 -6 -6 -5 -5 -5 -5 -4 -4 -4 -4 -3 -3 -2 -1 -1 ------- Run | Scr Mat Mat Min Mat Sto Fac Low Low Dat Pro Fac Ext Cet Arc Hub Fac Upp Upp War Pro Fac Arm Lab Res Qua Res Acc Com Traps Triggered 16 | . 1 . . 1 2 . . . . . . 7 . . . . . . . . . 1 . . . . . 4 Indirectly . | . . . . . . . . . . . . . . . . . . . . . . . . . . . . . Trap Hack Attempts . | . . . . . . . . . . . . . . . . . . . . . . . . . . . . . Triggered . | . . . . . . . . . . . . . . . . . . . . . . . . . . . . . Disarmed 6 | . 6 . . . . . . . . . . . . . . . . . . . . . . . . . . . Reprogrammed . | . . . . . . . . . . . . . . . . . . . . . . . . . . . . . Reused . | . . . . . . . . . . . . . . . . . . . . . . . . . . . . . Traps Extracted . | . . . . . . . . . . . . . . . . . . . . . . . . . . . . . Installed . | . . . . . . . . . . . . . . . . . . . . . . . . . . . . . Triggered 9 | . . . . . . . . . . . . . . . . . 1 . 8 . . . . . . . . . Machines | -11 -10 -9 -9 -8 -8 -7 -7 -7 -7 -6 -6 -6 -6 -6 -6 -5 -5 -5 -5 -4 -4 -4 -4 -3 -3 -2 -1 -1 ---------- Run | Scr Mat Mat Min Mat Sto Fac Low Low Dat Pro Fac Ext Cet Arc Hub Fac Upp Upp War Pro Fac Arm Lab Res Qua Res Acc Com Machines Disabled 36 | . . 2 . 4 1 . 1 . . . . 1 . 1 14 . . . 1 . . 2 1 . 4 . . 4 Max in Single Turn 13 | . . 2 . 2 1 . 1 . . . . . . . 13 . . . 1 . . 1 1 . 1 . . 2 Garrison Access 8 | . . . . . . . . . . . . . . . 1 1 . . . . . . . 1 1 2 2 . Phase Generator 1 | . . . . . . . . . . . . . . . . . . . . . . . . . . . . 1 Network Hub 1 | . . . . . . . . . . . . . . . 1 . . . . . . . . . . . . . Machines Sabotaged . | . . . . . . . . . . . . . . . . . . . . . . . . . . . . . Garrisons Compromised . | . . . . . . . . . . . . . . . . . . . . . . . . . . . . . Overloaded Fab Kills . | . . . . . . . . . . . . . . . . . . . . . . . . . . . . . Fab Network Shutdowns . | . . . . . . . . . . . . . . . . . . . . . . . . . . . . . Hacking | -11 -10 -9 -9 -8 -8 -7 -7 -7 -7 -6 -6 -6 -6 -6 -6 -5 -5 -5 -5 -4 -4 -4 -4 -3 -3 -2 -1 -1 --------- Run | Scr Mat Mat Min Mat Sto Fac Low Low Dat Pro Fac Ext Cet Arc Hub Fac Upp Upp War Pro Fac Arm Lab Res Qua Res Acc Com Machines Accessed 69 | . 3 2 . 2 6 . 1 . 4 . 3 14 1 . 2 2 1 . 9 . 1 1 2 1 2 1 5 6 Terminals 42 | . 2 2 . 1 6 . . . . . 3 14 1 . 1 . . . . . 1 1 . . 1 . 3 6 Fabricators 1 | . . . . . . . . . . . . . . . . 1 . . . . . . . . . . . . Repair Stations . | . . . . . . . . . . . . . . . . . . . . . . . . . . . . . Recycling Units 1 | . 1 . . . . . . . . . . . . . . . . . . . . . . . . . . . Scanalyzers 1 | . . . . 1 . . . . . . . . . . . . . . . . . . . . . . . . Garrison Access 7 | . . . . . . . . . . . . . . . 1 1 . . . . . . . 1 1 1 2 . Total Hacks 187 | . 6 4 . 8 14 . 1 . 25 . 9 28 2 . 5 4 5 . 31 . 1 1 3 1 5 2 18 14 Successful 146 | . 6 2 . 3 9 . 1 . 25 . 5 22 1 . 2 3 5 . 31 . 1 1 3 1 4 1 10 10 Failed 41 | . . 2 . 5 5 . . . . . 4 6 1 . 3 1 . . . . . . . . 1 1 8 4 Catastrophic 3 | . . . . . . . . . . . 1 . . . 1 . . . . . . . . . . . . 1 Database Lockouts . | . . . . . . . . . . . . . . . . . . . . . . . . . . . . . Manual 52 | . 3 3 . 3 9 . . . . . 4 10 1 . . . . . 1 . 1 1 . . 3 . 8 5 Terminals 100 | . 4 4 . 3 14 . . . . . 9 28 2 . 3 . . . . . 1 1 . . 3 . 14 14 Fabricators 2 | . . . . . . . . . . . . . . . . 2 . . . . . . . . . . . . Repair Stations . | . . . . . . . . . . . . . . . . . . . . . . . . . . . . . Recycling Units 2 | . 2 . . . . . . . . . . . . . . . . . . . . . . . . . . . Scanalyzers 5 | . . . . 5 . . . . . . . . . . . . . . . . . . . . . . . . Garrison Access 13 | . . . . . . . . . . . . . . . 2 2 . . . . . . . 1 2 2 4 . Terminal Hacks 117 | . 2 1 . . 5 . 1 . 25 . 4 16 1 . 2 . 5 . 31 . 1 1 3 . 3 . 8 8 Record 43 | . . . . . . . 1 . 11 . . . . . . . 5 . 23 . . . 3 . . . . . Part Schematic 5 | . . . . . . . . . 5 . . . . . . . . . . . . . . . . . . . Robot Schematic 6 | . . . . . . . . . 6 . . . . . . . . . . . . . . . . . . . Prototype ID Bank 11 | . . . . . . . . . 3 . . . . . . . . . 6 . . . . . . . . 2 Open Door 16 | . . . . . 2 . . . . . . 9 1 . . . . . 2 . . . . . . . 1 1 Level Access Points 2 | . . . . . . . . . . . . . . . 1 . . . . . . . . . . . 1 . Branch Access Points 4 | . . 1 . . . . . . . . 1 . . . . . . . . . 1 . . . . . 1 . Terminal Index 3 | . . . . . 1 . . . . . . 1 . . . . . . . . . . . . . . . 1 Alert Level 1 | . 1 . . . . . . . . . . . . . . . . . . . . . . . . . . . Unreport Threat 8 | . . . . . . . . . . . 2 . . . . . . . . . . . . . 3 . 3 . Locate Traps 1 | . . . . . . . . . . . . 1 . . . . . . . . . . . . . . . . Disarm Traps 1 | . 1 . . . . . . . . . . . . . . . . . . . . . . . . . . . Maintenance Status 1 | . . . . . . . . . . . 1 . . . . . . . . . . . . . . . . . Security Status 2 | . . . . . . . . . . . . 1 . . . . . . . . . . . . . . . 1 Recall Reinforcements 1 | . . . . . . . . . . . . 1 . . . . . . . . . . . . . . . . Hauler Manifests 2 | . . . . . . . . . . . . 1 . . . . . . . . . . . . . . 1 . Registered Components 2 | . . . . . 1 . . . . . . . . . . . . . . . . . . . . . . 1 Registered Prototypes 1 | . . . . . . . . . . . . 1 . . . . . . . . . . . . . . . . Zone Layout 5 | . . . . . 1 . . . . . . 1 . . 1 . . . . . . 1 . . . . 1 . Disengage Seal 2 | . . . . . . . . . . . . . . . . . . . . . . . . . . . . 2 Fabricator Hacks 2 | . . . . . . . . . . . . . . . . 2 . . . . . . . . . . . . Build 2 | . . . . . . . . . . . . . . . . 2 . . . . . . . . . . . . Repair Station Hacks . | . . . . . . . . . . . . . . . . . . . . . . . . . . . . . Recycling Unit Hacks 1 | . 1 . . . . . . . . . . . . . . . . . . . . . . . . . . . Report Inventory 1 | . 1 . . . . . . . . . . . . . . . . . . . . . . . . . . . Scanalyzer 3 | . . . . 3 . . . . . . . . . . . . . . . . . . . . . . . . Insert Component 2 | . . . . 2 . . . . . . . . . . . . . . . . . . . . . . . . Analyze 1 | . . . . 1 . . . . . . . . . . . . . . . . . . . . . . . . Garrison Access Hacks 6 | . . . . . . . . . . . . . . . . 1 . . . . . . . 1 1 1 2 . Seal Access 6 | . . . . . . . . . . . . . . . . 1 . . . . . . . 1 1 1 2 . Unauthorized Hacks 17 | . 3 1 . . 4 . . . . . 1 6 . . . . . . . . . . . . . . . 2 Terminals 16 | . 2 1 . . 4 . . . . . 1 6 . . . . . . . . . . . . . . . 2 Track 1 | . . . . . 1 . . . . . . . . . . . . . . . . . . . . . . . Botnet 14 | . 2 1 . . 3 . . . . . 1 5 . . . . . . . . . . . . . . . 2 Disrupt 1 | . . . . . . . . . . . . 1 . . . . . . . . . . . . . . . . Fabricators . | . . . . . . . . . . . . . . . . . . . . . . . . . . . . . Repair Stations . | . . . . . . . . . . . . . . . . . . . . . . . . . . . . . Recycling Units 1 | . 1 . . . . . . . . . . . . . . . . . . . . . . . . . . . Tunnel 1 | . 1 . . . . . . . . . . . . . . . . . . . . . . . . . . . Scanalyzers . | . . . . . . . . . . . . . . . . . . . . . . . . . . . . . Garrison Access . | . . . . . . . . . . . . . . . . . . . . . . . . . . . . . Data Cores Recovered 1 | . . . . . . . . . . . . . . . . . . . . . . . . . . . . 1 Used . | . . . . . . . . . . . . . . . . . . . . . . . . . . . . . Hacking Detections 28 | . 2 1 . 1 4 . . . . . 3 7 1 . 2 1 . . . . . 1 . . . . 2 3 Full Trace Events 6 | . . . . . 2 . . . . . 3 . . . 1 . . . . . . . . . . . . . Feedback Events 1 | . . . . . . . . . . . 1 . . . . . . . . . . . . . . . . . Corruption 1 | . . . . . . . . . . . 1 . . . . . . . . . . . . . . . . . Feedback Blocked . | . . . . . . . . . . . . . . . . . . . . . . . . . . . . . Robot Schematics Acquired 6 | . . . . . . . . . 6 . . . . . . . . . . . . . . . . . . . Robots Built . | . . . . . . . . . . . . . . . . . . . . . . . . . . . . . Matter . | . . . . . . . . . . . . . . . . . . . . . . . . . . . . . Time . | . . . . . . . . . . . . . . . . . . . . . . . . . . . . . Total Robot Build Rating . | . . . . . . . . . . . . . . . . . . . . . . . . . . . . . Part Schematics Acquired 6 | . . . . 1 . . . . 5 . . . . . . . . . . . . . . . . . . . Parts Built 1 | . . . . . . . . . . . . . . . . 1 . . . . . . . . . . . . Matter 351 | . . . . . . . . . . . . . . . . 351 . . . . . . . . . . . . Time 93 | . . . . . . . . . . . . . . . . 93 . . . . . . . . . . . . Total Part Build Rating 7 | . . . . . . . . . . . . . . . . 7 . . . . . . . . . . . . Parts Repaired . | . . . . . . . . . . . . . . . . . . . . . . . . . . . . . Time . | . . . . . . . . . . . . . . . . . . . . . . . . . . . . . Parts Recycled . | . . . . . . . . . . . . . . . . . . . . . . . . . . . . . Recycled Matter . | . . . . . . . . . . . . . . . . . . . . . . . . . . . . . Retrieved Matter . | . . . . . . . . . . . . . . . . . . . . . . . . . . . . . Retrieved Components . | . . . . . . . . . . . . . . . . . . . . . . . . . . . . . Parts Scanalyzed 1 | . . . . 1 . . . . . . . . . . . . . . . . . . . . . . . . Part Schematics Acquired 1 | . . . . 1 . . . . . . . . . . . . . . . . . . . . . . . . Parts Damaged . | . . . . . . . . . . . . . . . . . . . . . . . . . . . . . Bothacking | -11 -10 -9 -9 -8 -8 -7 -7 -7 -7 -6 -6 -6 -6 -6 -6 -5 -5 -5 -5 -4 -4 -4 -4 -3 -3 -2 -1 -1 ------------ Run | Scr Mat Mat Min Mat Sto Fac Low Low Dat Pro Fac Ext Cet Arc Hub Fac Upp Upp War Pro Fac Arm Lab Res Qua Res Acc Com Used RIF Installer . | . . . . . . . . . . . . . . . . . . . . . . . . . . . . . Robots Hacked 1 | . . . . . . . . . . . . . . . . . . . . . . . . . . . . 1 Non-combat . | . . . . . . . . . . . . . . . . . . . . . . . . . . . . . Combat 1 | . . . . . . . . . . . . . . . . . . . . . . . . . . . . 1 Robot Hacks Applied 1 | . . . . . . . . . . . . . . . . . . . . . . . . . . . . 1 parse_system 1 | . . . . . . . . . . . . . . . . . . . . . . . . . . . . 1 Relay Couplers Released 1 | . . . . . . . . . . . . . . . . . . . . . . . . . . 1 . . Machine Destruction 1 | . . . . . . . . . . . . . . . . . . . . . . . . . . 1 . . Robots Rewired 27 | . . . . . . . . . . . . 26 . . . . . . . . . . . 1 . . . . Allies Hacked 1 | . . . . . . . . . . . . 1 . . . . . . . . . . . . . . . . Hacks Repelled . | . . . . . . . . . . . . . . . . . . . . . . . . . . . . . Allies | -11 -10 -9 -9 -8 -8 -7 -7 -7 -7 -6 -6 -6 -6 -6 -6 -5 -5 -5 -5 -4 -4 -4 -4 -3 -3 -2 -1 -1 -------- Run | Scr Mat Mat Min Mat Sto Fac Low Low Dat Pro Fac Ext Cet Arc Hub Fac Upp Upp War Pro Fac Arm Lab Res Qua Res Acc Com Total Allies 176 | . . . 3 . 12 . . . . . . 37 5 . . . . . . . . . . 1 . 12 . 106 Largest Group 35 | . . . 3 . 10 . . . . . . 30 19 14 10 2 . . . . . . . 1 1 8 8 35 Highest-Rated Group 1007 | . . . 40 . 173 . . . . . . 1007 945 791 531 120 . . . . . . . 64 64 112 112 934 Highest-Rated Ally 243 | . . . 16 . 31 . . . . . . 156 156 156 94 94 . . . . . . . 64 64 15 15 243 Total Orders . | . . . . . . . . . . . . . . . . . . . . . . . . . . . . . Ally Attacks 740 | . . . 5 . 93 . . . . . . 122 67 24 35 . . . . . . . . . . 37 50 307 Total Damage 17550 | . . . 50 . 1417 . . . . . . 2457 1820 714 1000 . . . . . . . . . . 864 1028 8200 Kills 79 | . . . . . 13 . . . . . . 24 10 2 9 . . . . . . . . . . 2 . 19 Allies Corrupted 7 | . . . . . . . . . . . . 1 . . 1 . . . . . . . . . . . 1 4 Allies Melted . | . . . . . . . . . . . . . . . . . . . . . . . . . . . . . Intel | -11 -10 -9 -9 -8 -8 -7 -7 -7 -7 -6 -6 -6 -6 -6 -6 -5 -5 -5 -5 -4 -4 -4 -4 -3 -3 -2 -1 -1 ------- Run | Scr Mat Mat Min Mat Sto Fac Low Low Dat Pro Fac Ext Cet Arc Hub Fac Upp Upp War Pro Fac Arm Lab Res Qua Res Acc Com Robot Analysis Total . | . . . . . . . . . . . . . . . . . . . . . . . . . . . . . Derelict Logs Recovered 9 | . . . 1 . . . . 2 . 1 . . . . . . 1 2 . 2 . . . . . . . . Drone Launches . | . . . . . . . . . . . . . . . . . . . . . . . . . . . . . Drone Recoveries . | . . . . . . . . . . . . . . . . . . . . . . . . . . . . . Exploration | -11 -10 -9 -9 -8 -8 -7 -7 -7 -7 -6 -6 -6 -6 -6 -6 -5 -5 -5 -5 -4 -4 -4 -4 -3 -3 -2 -1 -1 ------------- Run | Scr Mat Mat Min Mat Sto Fac Low Low Dat Pro Fac Ext Cet Arc Hub Fac Upp Upp War Pro Fac Arm Lab Res Qua Res Acc Com Turns Passed 11472 | 52 287 561 116 446 556 147 308 171 31 275 158 1187 221 234 152 525 93 140 532 348 188 325 145 69 222 266 305 3412 Spaces Moved 15524 | 40 176 391 216 338 381 317 499 364 109 479 374 857 195 165 243 1018 268 250 1117 449 340 618 221 132 423 448 565 4531 Core 2 | 2 . . . . . . . . . . . . . . . . . . . . . . . . . . . . Treads . | . . . . . . . . . . . . . . . . . . . . . . . . . . . . . Legs . | . . . . . . . . . . . . . . . . . . . . . . . . . . . . . Wheels 461 | 38 176 247 . . . . . . . . . . . . . . . . . . . . . . . . . . Hover 532 | . . . . 328 204 . . . . . . . . . . . . . . . . . . . . . . . Flight 14529 | . . 144 216 10 177 317 499 364 109 479 374 857 195 165 243 1018 268 250 1117 449 340 618 221 132 423 448 565 4531 Fastest Speed 21 | 50 90 27 27 27 26 26 26 26 26 26 26 26 26 26 26 26 26 24 21 21 21 21 21 21 21 24 24 24 Average Speed 29 | 88 90 66 27 85 92 26 26 26 26 26 26 26 26 26 26 26 26 25 22 21 21 21 21 23 23 24 24 25 Slowest Speed 150 | 100 90 90 27 150 150 26 26 26 26 26 26 99 96 26 96 26 26 26 24 21 21 21 21 94 24 24 24 101 Overloaded Moves . | . . . . . . . . . . . . . . . . . . . . . . . . . . . . . Propulsion Burnouts . | . . . . . . . . . . . . . . . . . . . . . . . . . . . . . Robots Hopped 50 | . . . 3 . 1 4 . . 3 . . 11 . . . 14 . . . . 2 2 2 . 1 . 1 6 Cave-ins Triggered 4 | . . . . . . . . . . 1 . . . . . . . . . . . . . . . . . 3 Teleports 1 | . . . . . . . . . . . . . . . . . . . . . . . . . 1 . . . Exploration Rate (%) 48 | 3 37 47 52 35 74 9 68 61 76 62 11 87 62 80 30 30 45 41 83 62 12 66 97 7 38 15 21 92 Regions Visited 28 Branch Regions 18 Pre-discovered Areas 5 | . 1 . . . . . . 1 1 . . . . . . . . . . 2 . . . . . . . . Known Exits Taken 25 | . . 1 . 1 1 1 1 1 1 1 1 1 1 1 1 1 1 1 1 1 1 1 1 1 1 1 1 . Unknown Exits Taken 3 | 1 1 . 1 . . . . . . . . . . . . . . . . . . . . . . . . . Scrap Searched 8 | . . . 2 . . . 1 3 . 1 . . . . . . 1 . . . . . . . . . . . Spaces Dug 268 | . . . . . . . 6 6 . 14 8 . . . . 2 2 1 14 1 6 14 1 . 14 1 9 169 Terrain Destroyed 622 | . . 16 . 10 3 . 73 6 . 14 8 . 46 . 162 2 2 1 14 1 6 14 1 . 14 1 9 219 Melee 256 | . . . . . . . 6 6 . 14 8 . . . . 2 2 1 14 1 6 14 1 . 14 1 9 157 Projectile 28 | . . . . 10 3 . . . . . . . . . 1 . . . . . . . . . . . . 14 AOE 338 | . . 16 . . . . 67 . . . . . 46 . 161 . . . . . . . . . . . . 48 Terrain Rammed . | . . . . . . . . . . . . . . . . . . . . . . . . . . . . . Walls Destroyed . | . . . . . . . . . . . . . . . . . . . . . . . . . . . . . Machines Disabled . | . . . . . . . . . . . . . . . . . . . . . . . . . . . . . Actions | -11 -10 -9 -9 -8 -8 -7 -7 -7 -7 -6 -6 -6 -6 -6 -6 -5 -5 -5 -5 -4 -4 -4 -4 -3 -3 -2 -1 -1 --------- Run | Scr Mat Mat Min Mat Sto Fac Low Low Dat Pro Fac Ext Cet Arc Hub Fac Upp Upp War Pro Fac Arm Lab Res Qua Res Acc Com Total 20594 | 53 238 557 243 443 513 364 586 405 106 578 418 1711 357 335 307 1218 286 298 1358 642 423 742 275 149 499 581 688 6221 Wait 2950 | 3 11 60 . 37 45 31 17 7 . 22 31 377 124 150 33 140 6 16 185 127 58 80 3 1 19 80 91 1196 Move 15401 | 39 175 390 211 337 378 308 498 363 102 478 373 838 194 164 242 990 267 249 1116 448 335 613 216 131 420 447 562 4517 Hop 41 | . . . 1 . 1 4 . . 3 . . 7 . . . 13 . . . . 2 2 2 . 1 . 1 4 Pick Up 54 | . . 2 1 5 1 3 2 . . 3 . 4 3 1 3 4 3 . 4 1 2 2 3 . 3 . 3 1 Fast Attach 163 | 9 4 9 3 6 11 2 1 . . . 1 4 4 2 . 11 . 3 10 5 2 . 16 2 10 2 . 46 Attach 21 | . . . . 1 1 1 2 . . 1 . 3 . . . 1 . . 2 . . . 1 . 3 . . 5 Detach 49 | . . . 1 3 . 1 1 . . . . 2 1 1 . 5 . . 4 1 . . 2 . 2 1 . 24 Swap 23 | . . . 2 2 1 . 1 1 . . . 3 2 . 2 4 . . 1 . 1 1 . . 1 1 . . Drop 161 | 2 2 5 5 10 12 6 1 1 . 3 . 5 7 1 3 10 3 1 12 4 3 3 12 2 12 1 1 34 Fire 185 | . 29 58 12 24 22 . 4 . . . . . 1 . 7 . . . . . . . . 10 . . . 18 Melee 715 | . . . . . 17 8 51 24 1 35 10 63 4 14 9 22 4 12 21 28 15 33 20 . 22 12 23 267 Ram . | . . . . . . . . . . . . . . . . . . . . . . . . . . . . . Kick . | . . . . . . . . . . . . . . . . . . . . . . . . . . . . . Crush . | . . . . . . . . . . . . . . . . . . . . . . . . . . . . . Escape Stasis 198 | . . . . . 13 . . . . . . 126 . . . . . . . . . . . . 6 . . 53 Rewire 222 | . . . . . . . . . . . . 219 . . . . . . . . . . . 3 . . . . Trap . | . . . . . . . . . . . . . . . . . . . . . . . . . . . . . Miscellaneous 411 | . 17 33 7 18 11 . 8 9 . 36 3 60 17 2 8 18 3 17 3 28 5 8 . . . 37 7 56 Route ------- -11/Scrapyard -10/Materials -9/Materials -9/Mines -8/Materials (discovered 2 exits: *Fac / *Sto) -8/Storage -7/Factory (discovered 2 exits: *Fac / *Low) -7/Lower Caves (discovered 2 exits: *Low / *Zio) -7/Lower Caves (discovered 2 exits: *Fac / *Dat) -7/Data Miner -6/Proximity Caves -6/Factory (discovered 5 exits: *Fac / Low x2 / *Ext x2) -6/Extension (discovered 3 exits: *Fac x2 / *Cet) -6/Cetus (discovered 2 exits: *Fac / *Arc) -6/Archives (discovered 3 exits: *Fac / *Hub x2) -6/Hub_04(d) (discovered 4 exits: *Fac x4) -5/Factory (discovered 3 exits: *Fac x2 / *Upp) -5/Upper Caves -5/Upper Caves (discovered 2 exits: *Fac / *War) -5/Warlord -4/Proximity Caves -4/Factory (discovered 3 exits: Upp x2 / *Arm) -4/Armory (discovered 3 exits: *Res x2 / *Lab) -4/Lab -3/Research -3/Quarantine -2/Research -1/Access (discovered 2 exits: Sur / *Com) -1/Command (discovered 2 exits: *Sur x2) Tau Ceti IV Orbit History --------- Turn | Location | Event 2 | -11/Scrapyard | Upgraded with Power slot (x1) 2 | -11/Scrapyard | Upgraded with Propulsion slot (x1) 2 | -11/Scrapyard | Upgraded with Utility slot (x1) 2 | -11/Scrapyard | Upgraded with Weapon slot (x2) 10 | -11/Scrapyard | Discovered new exit (range 15) 53 | -11/Scrapyard | Entered Materials 268 | -10/Materials | Discovered new exit (range 8) 302 | -10/Materials | Build established: Gunner 340 | -10/Materials | Entered another Materials area 342 | -9/Materials | Reached level 2 355 | -9/Materials | Upgraded with Utility slot (x1) 415 | -9/Materials | Reached level 3 561 | -9/Materials | Reached level 4 645 | -9/Materials | Identified exit to Mines 646 | -9/Materials | Build established: Tank 816 | -9/Materials | Upgraded with Propulsion slot (x2) 875 | -9/Materials | Reached level 5 884 | -9/Materials | Upgraded with Utility slot (x1) 901 | -9/Materials | Entered Mines 911 | -9/Mines | Assembled infested the area 915 | -9/Mines | Assisted by bots powering up and referring to "LRC-V3" 916 | -9/Mines | Assisted by a Guerilla fighting off Assembled 980 | -9/Mines | Learned 2 Materials zone layouts 1015 | -9/Mines | Discovered new exit (range 6) 1017 | -9/Mines | Entered Materials 1019 | -8/Materials | Reached level 6 1262 | -8/Materials | Discovered new exit (range 13) 1293 | -8/Materials | Identified exit to Factory 1297 | -8/Materials | Reached level 7 1327 | -8/Materials | Discovered new exit (range 13) 1450 | -8/Materials | Identified exit to Storage 1463 | -8/Materials | Entered Storage 1465 | -8/Storage | Reached level 8 1600 | -8/Storage | Assisted by bots powering up and referring to "LRC-V3" 1762 | -8/Storage | Found Prototype Launcher 1762 | -8/Storage | Identified Scatter Rocket Array 1768 | -8/Storage | Reached level 9 1850 | -8/Storage | Reached level 10 1976 | -8/Storage | Upgraded with Utility slot (x1) 1981 | -8/Storage | Met a pair of Derelict thieves 2014 | -8/Storage | Discovered exit to Factory (range 16) 2019 | -8/Storage | Entered Factory 2021 | -7/Factory | Reached level 11 2109 | -7/Factory | Discovered new exit (range 2) 2109 | -7/Factory | Identified exit to Factory 2134 | -7/Factory | Build established: Sprinter 2165 | -7/Factory | Discovered new exit (range 3) 2166 | -7/Factory | Identified exit to Lower Caves 2166 | -7/Factory | Entered Lower Caves 2167 | -7/Lower Caves | Reached level 12 2168 | -7/Lower Caves | Attracted the attention of an 0b10 checkpoint 2197 | -7/Lower Caves | Reached level 13 2200 | -7/Lower Caves | Upgraded with Utility slot (x1) 2200 | -7/Lower Caves | Upgraded with Weapon slot (x1) 2218 | -7/Lower Caves | Destroyed 10 combat bots 2229 | -7/Lower Caves | Encountered a Warlord checkpoint 2230 | -7/Lower Caves | A Derelict revealed a hidden shortcut to a safe place 2234 | -7/Lower Caves | Identified exit to Zion 2251 | -7/Lower Caves | Ambushed by wild Derelicts 2333 | -7/Lower Caves | Core integrity fell below 50% 2472 | -7/Lower Caves | Discovered new exit (range 6) 2474 | -7/Lower Caves | Identified exit to Lower Caves 2474 | -7/Lower Caves | Entered another Lower Caves area 2474 | -7/Lower Caves | Discovered exit to Factory (range 14) 2477 | -7/Lower Caves | Learned Factory trap positions 2615 | -7/Lower Caves | Reached level 14 2642 | -7/Lower Caves | Discovered new exit (range 13) 2645 | -7/Lower Caves | Identified exit to Data Miner 2645 | -7/Lower Caves | Entered Data Miner 2645 | -7/Data Miner | Discovered new exit (range 6) 2650 | -7/Data Miner | Met Data Miner 2659 | -7/Data Miner | Learned location of Section 7 (-3) 2659 | -7/Data Miner | Acquired the access code to Warlord's prototype stash 2662 | -7/Data Miner | Received God Mode back door access code from Data Miner 2676 | -7/Data Miner | Identified exit to Proximity Caves 2676 | -7/Data Miner | Entered Proximity Caves 2678 | -6/Proximity Caves | Reached level 15 2693 | -6/Proximity Caves | Attracted the attention of an 0b10 checkpoint 2787 | -6/Proximity Caves | Crushed by falling debris 2815 | -6/Proximity Caves | Attracted the attention of an 0b10 outpost 2824 | -6/Proximity Caves | Spotted B-75 Beast 2831 | -6/Proximity Caves | Learned Factory stockpile data 2832 | -6/Proximity Caves | Core integrity fell below 20% 2947 | -6/Proximity Caves | Discovered exit to Factory (range 12) 2951 | -6/Proximity Caves | Entered Factory 2952 | -6/Factory | Loaded intel: 97 trap records 2953 | -6/Factory | Reached level 16 2970 | -6/Factory | Upgraded with Utility slot (x1) 2979 | -6/Factory | Discovered new exit (range 15) 3071 | -6/Factory | Identified exit to Lower Caves 3071 | -6/Factory | Identified exit to Extension 3106 | -6/Factory | Discovered new exit (range 14) 3109 | -6/Factory | Entered Extension 3111 | -6/Extension | Reached level 17 3306 | -6/Extension | Rescued a captive Derelict 3311 | -6/Extension | Rescued a captive Derelict 3427 | -6/Extension | Reached level 18 3458 | -6/Extension | Rescued a captive Derelict 3458 | -6/Extension | Rescued a captive Derelict 3756 | -6/Extension | Upgraded with Utility slot (x1) 3848 | -6/Extension | Spotted B-75 Beast 3855 | -6/Extension | Spotted B-75 Beast 3860 | -6/Extension | Destroyed B-75 Beast 3864 | -6/Extension | Discovered new exit (range 3) 3864 | -6/Extension | Identified exit to Factory 3866 | -6/Extension | Destroyed B-75 Beast 3873 | -6/Extension | Build established: Commander-Sprinter 3927 | -6/Extension | Rescued a captive Derelict 3927 | -6/Extension | Rescued a captive Derelict 3950 | -6/Extension | Rescued a captive Derelict 3979 | -6/Extension | Reached level 19 4027 | -6/Extension | Rescued a captive Derelict 4027 | -6/Extension | Rescued a captive Derelict 4062 | -6/Extension | Rescued A7 4159 | -6/Extension | First assault squad dispatched 4172 | -6/Extension | Rescued a captive Derelict 4222 | -6/Extension | Discovered exit to Factory (range 10) 4227 | -6/Extension | Discovered new exit (range 6) 4232 | -6/Extension | Reached level 20 4262 | -6/Extension | Destroyed 10 combat bots 4266 | -6/Extension | Identified exit to Cetus 4296 | -6/Extension | Entered Cetus 4296 | -6/Cetus | Accompanied by 18 allies (A7) 4301 | -6/Cetus | Acquired a Cetus Manufacturing Module code from A7 4304 | -6/Cetus | Spotted Cetus Guard 4304 | -6/Cetus | Spotted Cetus Guard 4312 | -6/Cetus | Allies destroyed Cetus Guard 4314 | -6/Cetus | Allies destroyed Cetus Guard 4314 | -6/Cetus | Spotted Cetus Guard 4315 | -6/Cetus | Spotted Cetus Guard 4319 | -6/Cetus | Allies destroyed Cetus Guard 4319 | -6/Cetus | Allies destroyed Cetus Guard 4333 | -6/Cetus | Started Cetus Manufacturing Module 4342 | -6/Cetus | Discovered new exit (range 15) 4358 | -6/Cetus | Manufactured an Enhanced Grunt 4383 | -6/Cetus | Manufactured an Enhanced Grunt 4408 | -6/Cetus | Manufactured an Enhanced Grunt 4424 | -6/Cetus | Spotted Cetus Guard 4424 | -6/Cetus | Spotted Cetus Guard 4425 | -6/Cetus | Spotted Cetus Guard 4432 | -6/Cetus | Spotted Cetus Guard 4433 | -6/Cetus | Manufactured an Enhanced Grunt 4438 | -6/Cetus | Destroyed Cetus Guard 4439 | -6/Cetus | Allies destroyed Cetus Guard 4441 | -6/Cetus | Discovered exit to Factory (range 15) 4442 | -6/Cetus | Allies destroyed Cetus Guard 4443 | -6/Cetus | Allies destroyed Cetus Guard 4452 | -6/Cetus | Met Revision 17 4458 | -6/Cetus | Manufactured an Enhanced Grunt 4474 | -6/Cetus | Found Prototype Device 4474 | -6/Cetus | Identified Exp. Thermal Shield 4483 | -6/Cetus | Identified exit to Archives 4517 | -6/Cetus | Entered Archives 4517 | -6/Archives | Accompanied by 14 allies (A7) 4530 | -6/Archives | Upgraded with Utility slot (x1) 4533 | -6/Archives | Discovered new exit (range 16) 4543 | -6/Archives | Discovered new exit (range 15) 4545 | -6/Archives | Discovered exit to Factory (range 15) 4602 | -6/Archives | Identified exit to Hub_04(d) 4751 | -6/Archives | Entered Hub_04(d) 4751 | -6/Hub_04(d) | Accompanied by 10 allies 4772 | -6/Hub_04(d) | Reached level 21 4777 | -6/Hub_04(d) | Discovered exit to Factory (range 16) 4890 | -6/Hub_04(d) | Network Hub disabled 4903 | -6/Hub_04(d) | Spotted Lightning 4903 | -6/Hub_04(d) | Spotted Lightning 4903 | -6/Hub_04(d) | Spotted Lightning 4903 | -6/Hub_04(d) | Spotted Lightning 4903 | -6/Hub_04(d) | Entered Factory 4903 | -5/Factory | Accompanied by 2 allies 4931 | -5/Factory | Discovered new exit (range 12) 4945 | -5/Factory | Identified exit to Factory 5014 | -5/Factory | Reached level 22 5035 | -5/Factory | Upgraded with Utility slot (x1) 5188 | -5/Factory | Build established: Hacker-Sprinter 5241 | -5/Factory | Found Prototype Processor 5241 | -5/Factory | Identified Exp. Signal Interpreter 5260 | -5/Factory | Discovered exit to Factory (range 14) 5380 | -5/Factory | Fabricated Exp. Hacking Suite (x1) 5423 | -5/Factory | Discovered new exit (range 15) 5427 | -5/Factory | Identified exit to Upper Caves 5428 | -5/Factory | Entered Upper Caves 5435 | -5/Upper Caves | Learned Research emergency access door positions 5435 | -5/Upper Caves | Learned Factory security intel 5435 | -5/Upper Caves | Learned Research security intel 5507 | -5/Upper Caves | Identified exit to Upper Caves 5521 | -5/Upper Caves | Entered another Upper Caves area 5523 | -5/Upper Caves | Learned Factory security intel 5524 | -5/Upper Caves | Encountered a Warlord checkpoint 5524 | -5/Upper Caves | Learned Factory emergency access door positions 5534 | -5/Upper Caves | Found Alien Artifact 5534 | -5/Upper Caves | Identified Core Expander 5534 | -5/Upper Caves | Installed Core Expander, added new Propulsion slot 5542 | -5/Upper Caves | Discovered exit to Factory (range 5) 5659 | -5/Upper Caves | Discovered new exit (range 10) 5661 | -5/Upper Caves | Identified exit to Warlord 5661 | -5/Upper Caves | Entered Warlord 5667 | -5/Warlord | Discovered new exit (range 14) 5796 | -5/Warlord | Met Warlord 5797 | -5/Warlord | Opened Warlord's prototype stash 5799 | -5/Warlord | Found Prototype Processor 5799 | -5/Warlord | Identified Exp. Target Analyzer 5801 | -5/Warlord | Found Prototype Device 5801 | -5/Warlord | Identified System Purifier 5812 | -5/Warlord | Found Prototype Hackware 5812 | -5/Warlord | Identified Ghost Barrier 5821 | -5/Warlord | Reached level 23 5821 | -5/Warlord | Warlord's base attacked by MAIN.C 5846 | -5/Warlord | Found Prototype Energy Gun 5846 | -5/Warlord | Identified Vortex Rail 5849 | -5/Warlord | Found Prototype Energy Gun 5849 | -5/Warlord | Identified Vortex Shotgun 5873 | -5/Warlord | Learned Factory recycling unit intel 5873 | -5/Warlord | Learned Armory terminal intel 5873 | -5/Warlord | Learned Armory fabricator intel 5873 | -5/Warlord | Learned Armory recycling unit intel 5873 | -5/Warlord | Learned Research garrison access intel 5873 | -5/Warlord | Learned 4 Armory zone layouts 5873 | -5/Warlord | Learned 4 Research zone layouts 5873 | -5/Warlord | Learned 4 Access zone layouts 5873 | -5/Warlord | Learned 4 Quarantine zone layouts 5873 | -5/Warlord | Learned Research trap positions 5873 | -5/Warlord | Learned Quarantine emergency access door positions 5873 | -5/Warlord | Learned Research stockpile data 5873 | -5/Warlord | Learned Quarantine stockpile data 5909 | -5/Warlord | Opened side exit 6101 | -5/Warlord | Found Prototype Ballistic Cannon 6101 | -5/Warlord | Identified Hvy. Autocannon 6171 | -5/Warlord | Warlord forces counterattacked 6192 | -5/Warlord | Identified exit to Proximity Caves 6193 | -5/Warlord | Entered Proximity Caves 6194 | -4/Proximity Caves | Learned location of Testing (-2) 6454 | -4/Proximity Caves | Reached level 24 6539 | -4/Proximity Caves | Discovered exit to Factory (range 8) 6541 | -4/Proximity Caves | Entered Factory 6544 | -4/Factory | Loaded intel: 6 recycling unit locations 6646 | -4/Factory | Identified exit to Upper Caves 6646 | -4/Factory | Identified exit to Armory 6729 | -4/Factory | Entered Armory 6731 | -4/Armory | Loaded intel: 11 terminal locations 6732 | -4/Armory | Loaded intel: 7 fabricator locations 6733 | -4/Armory | Loaded intel: 2 recycling unit locations 6735 | -4/Armory | Reached level 25 6894 | -4/Armory | Spotted B-86 Titan 6953 | -4/Armory | Discovered new exit (range 3) 6954 | -4/Armory | Identified exit to Research 6983 | -4/Armory | Found Adv. Powered Armor 7027 | -4/Armory | Discovered exit to Research (range 3) 7046 | -4/Armory | Discovered new exit (range 9) 7054 | -4/Armory | Identified exit to Lab 7054 | -4/Armory | Entered Lab 7054 | -4/Lab | Discovered exit to Research (range 9) 7057 | -4/Lab | Unable to decrypt terminal 7069 | -4/Lab | Detected for breach 7073 | -4/Lab | Gained access to the hidden lab's interior 7073 | -4/Lab | Reached level 26 7076 | -4/Lab | Confronted by A5 7090 | -4/Lab | Core integrity fell below 50% 7109 | -4/Lab | Destroyed A5 7116 | -4/Lab | Found Prototype Hackware 7116 | -4/Lab | Identified Exp. System Shield 7120 | -4/Lab | Unable to decrypt terminal 7121 | -4/Lab | Found Alien Artifact 7121 | -4/Lab | Identified Core Reset Matrix 7121 | -4/Lab | Used Core Reset Matrix 7125 | -4/Lab | Sensed 3 artifacts in vicinity 7127 | -4/Lab | Upgraded with Utility slot (x1) 7128 | -4/Lab | Found Core Regenerator 7128 | -4/Lab | Used Core Regenerator, restored core integrity (+250) 7134 | -4/Lab | Found Integrated Dissipator 7134 | -4/Lab | Installed Integrated Dissipator, increased core heat dissipation (+20) 7142 | -4/Lab | Found Transdimensional Reconstructor 7149 | -4/Lab | Discovered exit to Research (range 5) 7161 | -4/Lab | Found Prototype Special Weapon 7165 | -4/Lab | Unable to decrypt terminal 7169 | -4/Lab | Found Prototype Hackware 7169 | -4/Lab | Identified Quantum Router 7171 | -4/Lab | Found Prototype Protection 7171 | -4/Lab | Identified Exp. Powered Armor 7184 | -4/Lab | Found Prototype Energy Gun 7184 | -4/Lab | Identified Tachyon Dispersion Ray 7186 | -4/Lab | Found Tachyon Dispersion Ray 7194 | -4/Lab | Found Exp. Hacking Suite 7199 | -4/Lab | Entered Research 7201 | -3/Research | Reached level 27 7224 | -3/Research | Spotted B-86 Titan 7250 | -3/Research | Discovered new exit (range 11) 7261 | -3/Research | Identified exit to Quarantine 7268 | -3/Research | Entered Quarantine 7268 | -3/Quarantine | Accompanied by 1 ally 7269 | -3/Quarantine | Detected hypermatrix surge 7269 | -3/Quarantine | Sensed 5 artifacts in vicinity 7296 | -3/Quarantine | Discovered new exit (range 16) 7299 | -3/Quarantine | Identified exit to Research 7310 | -3/Quarantine | Found Sigix Broadsword 7315 | -3/Quarantine | Reached level 28 7320 | -3/Quarantine | Found Subatomic Replicator 7321 | -3/Quarantine | Used Subatomic Replicator to replicate Sigix Broadsword 7328 | -3/Quarantine | Identified Gui. Remote Datajack 7398 | -3/Quarantine | Met incapacitated Sigix Warrior 7398 | -3/Quarantine | Lockdown squad dispatched 7437 | -3/Quarantine | Spotted Lightning 7441 | -3/Quarantine | Spotted Lightning 7441 | -3/Quarantine | Scanned by Researcher 7443 | -3/Quarantine | Core integrity fell below 50% 7445 | -3/Quarantine | Spotted Lightning 7448 | -3/Quarantine | Warped through subspace 7490 | -3/Quarantine | Entered Research 7490 | -2/Research | Warlord forces began assault on 0b10 7491 | -2/Research | Core integrity fell below 50% 7492 | -2/Research | Reached level 29 7536 | -2/Research | Emitted hypermatrix ping 7541 | -2/Research | Assembled emerged from beneath the floor 7600 | -2/Research | Research machine network offline 7618 | -2/Research | Reached level 30 7680 | -2/Research | Build established: Wizard-Sprinter 7688 | -2/Research | Assembled emerged from beneath the floor 7698 | -2/Research | Met up with Warlord 7713 | -2/Research | Discovered new exit (range 10) 7715 | -2/Research | Identified exit to Access 7756 | -2/Research | Entered Access 7756 | -1/Access | Accompanied by 8 allies 7758 | -1/Access | Reached level 31 7812 | -1/Access | Reached level 32 7869 | -1/Access | Identified exit to Command 7869 | -1/Access | Identified exit to Surface 8061 | -1/Access | Entered Command 8063 | -1/Command | Reached level 33 8075 | -1/Command | Disengaged cave seal 8075 | -1/Command | Assembled emerged from the dark tunnel 8083 | -1/Command | Reached level 34 8295 | -1/Command | Disengaged cave seal 8441 | -1/Command | Spotted M Guard 8441 | -1/Command | Spotted M Guard 8442 | -1/Command | Spotted Combat Programmer 8442 | -1/Command | Spotted Combat Programmer 8453 | -1/Command | Destroyed Combat Programmer 8480 | -1/Command | Destroyed Combat Programmer 8517 | -1/Command | Destroyed M Guard 8521 | -1/Command | Core integrity fell below 50% 8545 | -1/Command | Destroyed M Guard 8545 | -1/Command | All MAIN.C guards destroyed 8545 | -1/Command | Reached level 35 8751 | -1/Command | Met MAIN.C 8762 | -1/Command | 0b10 Conduit disabled 8770 | -1/Command | System corruption reached 10% 8784 | -1/Command | Destroyed MAIN.C Shell 8787 | -1/Command | MAIN.C activated Command garrisons 8798 | -1/Command | Emitted hypermatrix ping 8803 | -1/Command | Assembled emerged from beneath the floor 8829 | -1/Command | Reached level 36 8829 | -1/Command | Destroyed MAIN.C 9101 | -1/Command | Found Prototype Protection 9101 | -1/Command | Identified Centrium Heavy Armor Plating 9154 | -1/Command | Discovered exit to Surface (range 9) 9161 | -1/Command | Spotted B-99 Colossus 9303 | -1/Command | Found Prototype Launcher 9303 | -1/Command | Identified Z-bomb Delivery System 9306 | -1/Command | Found Prototype Reactor 9306 | -1/Command | Identified Zero-point Reactor 9309 | -1/Command | Found Zero-point Reactor 9311 | -1/Command | Found Prototype Device 9311 | -1/Command | Identified Exp. Focal Shield 9315 | -1/Command | Found Prototype Device 9315 | -1/Command | Identified EM Dispersion Field 9318 | -1/Command | Found Prototype Device 9318 | -1/Command | Identified Exp. Force Field 9320 | -1/Command | Found Prototype Device 9320 | -1/Command | Identified System Purifier 9613 | -1/Command | Build established: Alien-Sprinter 9784 | -1/Command | Destroyed B-99 Colossus 9785 | -1/Command | Core integrity fell below 20% 10215 | -1/Command | Spotted Executioner 10494 | -1/Command | Destroyed Executioner 10630 | -1/Command | Assembled emerged from beneath the floor 10641 | -1/Command | Assembled emerged from beneath the floor 10659 | -1/Command | Spotted B-99 Colossus 10665 | -1/Command | Assembled emerged from beneath the floor 10688 | -1/Command | Allies destroyed B-99 Colossus 10707 | -1/Command | Discovered exit to Surface (range 8) 10791 | -1/Command | Phase Generator disabled 10857 | -1/Command | Assembled emerged from beneath the floor 10909 | -1/Command | Assembled emerged from beneath the floor 11366 | -1/Command | Crushed by falling debris 11390 | -1/Command | Crushed by falling debris 11400 | -1/Command | Crushed by falling debris 11473 | -1/Command | Reached level 37 11473 | *** | Destroyed 0B10! Last Messages --------------- 11366_ The unstable cave ceiling collapses. 11366_ Crushed by falling debris. 11390_ The unstable cave ceiling collapses. 11390_ Crushed by falling debris. 11390_ EM Dispersion Field destroyed. 11390_ System corrupted by crushing effect (+1). 11400_ The unstable cave ceiling collapses. 11400_ Crushed by falling debris. 11410_ Acquired Unknown Device. 11410_ Identified System Guard. 11414_ Dropped System Guard. 11415_ Acquired 15 matter. 11415_ Acquired Unknown Processor. 11415_ Identified Adv. Signal Interpreter. 11417_ Discarded Adv. Signal Interpreter. 11418_ Acquired Unknown Processor. 11418_ Identified Adv. Visual Processing Unit. 11425_ Acquired 10 matter. 11435_ System Purifier purges 1% of system corruption (0%). 11473_ Reached level 37. Map ----- +----------------------------------------------------+ | ![ ! ###????# ### ########" " " | | * ! ["#????# #?#######???????# """ | | ! *%!""#????# #???????????????# """ | | %!|%######## ! #???????????????######### | | #%= *=*= #???????????????????????? | | #+##"""[!= "######## #???????????##??????????? | | =*### #%#### ######### ############"#??????????? | | !#?###!#??# " [ # ## #???????????? | | #???#[#??# # # ## #???????????? | | #####/#### # #* ## #???????????? | | # =%= # # + ## "" #???????????? | | # # # # ## """" #???????????? | | # " # ######### ## """" #???????????? | | ### """" # ######## # "" #???????????? | | ""# """" + aaaa T" # #???????????? | | ""# "" # aaaaaa "" + #???????????? | | ""# # #######a # "" #???????????? | | ""# |# #?????##a ## """" #???????????? | | ""# # #??????#aa## """" #???????????? | | #######+#### #??????#aa## "" #???????????? | | ??????# #??# #??????#aa## #???????????? | | ??????# #### #####??#aa## #???????????? | | #######+## % % #??#aa"###########"#??????????? | | # "" # ! = #??# a###?????????##??????????? | | # """" # #??#aaaa#?????????????????????? | | # """" # /! #??#aa@a#?????????????????????? | | # "" # /! #??#aaaa##????????????????????? | | # # #??#########??????????????????? | | # ] # #########""#??????????????????? | | # # #= * #???????????????????? | | # # # ] #???????????????????? | | # # # "" ##??????????????????? | | #######+#" + """""#??????????????????? | | * =% # """""#??????????????????? | | %= = ! # "" ##??????????????????? | | # #???????????????????? | | "##"##"### # #???????????????????? | | ########?# ##"#"##"##"##"###"#??????????????????? | | ????????## ###############??##??????????????????? | | ????????#"##"#???????????????????????????????????? | | ????????###?##???????????????????????????????????? | | ?????????????????????????????????????????????????? | | ?????????????????????????????????????????????????? | | ?????????????????????????????????????????????????? | | ?????????????????????????????????????????????????? | | ?????????????????????????????????????????????????? | | ?????????????????????????????????????????????????? | | ?????????????????????????????????????????????????? | | ?????????????????????????????????????????????????? | | ?????????????????????????????????????????????????? | +----------------------------------------------------+ Best States ------------- Heat Dissipation 213 Energy Generation 77 Energy Capacity 580 Matter Stores 300 Matter Capacity 300 Sight Range 20 Robot Scan Range 24 Terrain Scan Density 10 Power Amplification 20 Additional Mass Support 6 Armor Coverage 450 Resistance: KI 20 Resistance: TH 30 Resistance: EX 20 Resistance: EM 75 Utility Shielding 66 Weapon Shielding 33 Melee Speed Boost 20 Phase Shifting 15 Evasion (%) 94 Melee Accuracy 24 Target Analysis 12 Core Analysis 8 Armor Integrity Analysis 66 Offensive Hacking 47 Defensive Hacking 45 Item Schematics ----------------- None Robot Schematics ------------------ None Fabricated ------------ Exp. Hacking Suite | x1 | -5/Factory | Preloaded Alien Tech Used ----------------- Core Expander Core Reset Matrix Core Regenerator Integrated Dissipator Sigix Broadsword Subatomic Replicator Transdimensional Reconstructor Achievements -------------- None Challenges ------------ None RPGLIKE | -11 -10 -9 -9 -8 -8 -7 -7 -7 -7 -6 -6 -6 -6 -6 -6 -5 -5 -5 -5 -4 -4 -4 -4 -3 -3 -2 -1 -1 --------- Run | Scr Mat Mat Min Mat Sto Fac Low Low Dat Pro Fac Ext Cet Arc Hub Fac Upp Upp War Pro Fac Arm Lab Res Qua Res Acc Com Levels Raised 36 | . . 4 . 2 3 1 2 1 . 1 1 4 . . 1 1 . . 1 1 . 1 1 1 1 2 2 5 XP Earned 57157 | 3000 1400 4742 500 2875 5131 1841 1993 1118 453 2200 1535 4876 683 337 934 1289 256 507 478 1427 934 902 1900 1399 1289 3493 2876 6789 XP Spent 53645 | 2920 . 5580 . 1985 5800 1375 3300 . . 2380 2000 2900 . 2600 . 3500 . . . . . . 3200 . 1250 . 6850 8005 Upgrades 110 | 7 . 11 . 11 11 3 4 . . 11 1 3 . 1 . 2 . . . . . . 1 . 1 . 10 33 Power Slot 1 | 1 . . . . . . . . . . . . . . . . . . . . . . . . . . . . Propulsion Slot 3 | 1 . 2 . . . . . . . . . . . . . . . . . . . . . . . . . . Utility Slot 10 | 1 . 2 . . 1 . 1 . . . 1 1 . 1 . 1 . . . . . . 1 . . . . . Weapon Slot 3 | 2 . . . . . . 1 . . . . . . . . . . . . . . . . . . . . . Core Integrity 37 | . . . . . . . . . . 8 . . . . . . . . . . . . . . . . . 29 Heat Dissipation 13 | 2 . 3 . 8 . . . . . . . . . . . . . . . . . . . . . . . . Energy Generation 1 | . . . . . 1 . . . . . . . . . . . . . . . . . . . . . . . Mass Support 4 | . . 2 . . 2 . . . . . . . . . . . . . . . . . . . . . . . Inventory Capacity 7 | . . 2 . . . 1 . . . 1 . . . . . . . . . . . . . . 1 . 2 . Sensor Range 12 | . . . . 3 7 2 . . . . . . . . . . . . . . . . . . . . . . Melee Accuracy 4 | . . . . . . . 2 . . 2 . . . . . . . . . . . . . . . . . . Hack Attack % 3 | . . . . . . . . . . . . 2 . . . 1 . . . . . . . . . . . . KI Resistance % 4 | . . . . . . . . . . . . . . . . . . . . . . . . . . . 4 . TH Resistance % 4 | . . . . . . . . . . . . . . . . . . . . . . . . . . . 4 . EX Resistance % 4 | . . . . . . . . . . . . . . . . . . . . . . . . . . . . 4 Protomatter Created 3496 | . 119 377 . 241 47 . 68 66 . 251 . 557 . . 87 176 103 135 42 183 99 194 . . . 217 136 398 Integrity Restored 8400 | . 347 616 159 324 201 . 174 198 . 747 63 1207 380 21 111 336 46 344 36 589 100 174 . . . 849 137 1241 Core 6537 | . 309 390 159 182 174 . 174 198 . 639 63 607 236 16 91 245 35 279 33 477 24 152 . . . 779 83 1192 Parts 1863 | . 38 226 . 142 27 . . . . 108 . 600 144 5 20 91 11 65 3 112 76 22 . . . 70 54 49 Protomatter Decayed 10080 | . . 109 220 126 264 . . . . 20 . 223 141 48 444 101 . 73 480 80 5 117 . . 66 458 311 6794 Game ------ Seed AssaultEnergyRedistributor Manual? 0 Play Time 03:01:00 Cumulative 275.0 hours Start 2020.09.25 @ 21:19:46 End 2020.09.26 @ 00:30:48 Sessions 1 Manual Loads 0 Difficulty Rogue Special Mode Winter2019/RPGLIKE Game No. 270 Rogue 270 Adventurer 0 Explorer 0 Win Type 3 Total 16 Types 11/0/3/2/0/0/0/0/0 Lore% 83 Gallery% 91 Achievement% 75 Wizard Run 0 Options --------- ASCII 0 Keyboard 1 Movement Numpad Keybinds 0 Fullscreen 1 Font 18/SmallcapsGlow Map View 76x50 Tactical HUD 1 Map Filters NONE Filters NONE Steam 1 RUN: 937cd659-7dc2-4bbb-bc02-98a7cb2f5cde